bitfinex/quotes_SOLUSD_20241020
["timestamp","ask_amount","ask_price","bid_price","bid_amount"]
[1729461539829,16.5662,163.75,163.71,6.1083]
[1729461540033,22.673,163.75,163.7,6.1086]
[1729461540236,22.673,163.75,163.7,21.3804]
[1729461540437,16.5662,163.75,163.71,6.1083]
[1729461541246,16.5662,163.75,163.7,15.2718]
[1729461541570,6.1072,163.74,163.7,15.2718]
[1729461541746,16.5662,163.75,163.7,15.2718]
[1729461541954,22.6731,163.75,163.7,21.3804]
[1729461543049,16.5662,163.75,163.71,6.1082]
[1729461543431,16.5662,163.75,163.72,6.1079]
[1729461543634,16.5662,163.75,163.72,23.776884]
[1729461544038,16.5662,163.75,163.72,29.884484]
[1729461544234,16.5662,163.75,163.72,23.776884]
[1729461544440,0.74870648,163.76,163.75,6.1068]
[1729461544644,0.74870648,163.76,163.75,29.883684]
[1729461545235,15.1085,163.81,163.78,15.2641]
[1729461545558,6.6268,163.83,163.78,15.2641]
[1729461545745,6.6268,163.83,163.79,6.1052]
[1729461546335,6.6268,163.83,163.8,6.1049]
[1729461546745,21.2116,163.85,163.8,6.1049]
[1729461547447,15.1085,163.85,163.78,23.776884]
[1729461547632,15.1085,163.85,163.82,23.776884]
[1729461548239,15.1085,163.85,163.82,29.881084]
[1729461548729,0.38256826,163.86,163.85,23.776884]
[1729461549547,0.38256826,163.86,163.84,6.1034]
[1729461549548,0.38256826,163.86,163.84,23.776884]
[1729461552555,0.38256826,163.86,163.83,23.776884]
[1729461552961,0.38256826,163.86,163.83,29.880684]
[1729461553570,0.38256826,163.86,163.83,23.776884]
[1729461554462,0.38256826,163.86,163.81,6.1044]
[1729461554667,6.1025,163.87,163.82,20.0]
[1729461555158,6.1028,163.86,163.81,20.0]
[1729461555346,6.1028,163.86,163.81,26.1045]
[1729461555541,6.1028,163.86,163.81,6.1045]
[1729461555759,6.1033,163.85,163.8,21.3673]
[1729461557161,6.1033,163.85,163.81,23.776884]
[1729461557351,16.03999995,163.9,163.8,15.2624]
[1729461557539,6.1034,163.85,163.8,15.2624]
[1729461557974,6.1036,163.84,163.8,15.2624]
[1729461558276,0.78639995,163.9,163.76,10.545]
[1729461558567,16.0401,163.84,163.77,20.0]
[1729461559068,22.1437,163.84,163.79,6.1052]
[1729461559662,16.0401,163.84,163.8,23.776884]
[1729461560753,16.0401,163.84,163.81,23.776884]
[1729461561272,21.3763,163.88,163.84,23.776884]
[1729461561273,6.1213,163.88,163.84,23.776884]
[1729461561457,12.2234,163.88,163.84,23.776884]
[1729461561657,12.2234,163.88,163.83,23.776884]
[1729461562171,12.2234,163.88,163.83,29.880684]
[1729461562954,6.1026,163.87,163.83,23.776884]
[1729461564245,6.1026,163.87,163.82,21.3648]
[1729461566580,6.1213,163.88,163.82,15.2606]
[1729461566771,6.1023,163.87,163.82,21.3647]
[1729461568560,6.1213,163.88,163.82,21.3647]
[1729461568561,6.1028,163.86,163.82,21.3647]
[1729461568878,6.1213,163.88,163.77,20.0]
[1729461569167,6.104,163.83,163.78,6.1056]
[1729461570456,6.1213,163.88,163.79,6.105]
[1729461570457,6.1034,163.85,163.79,6.105]
[1729461570778,6.1213,163.88,163.79,15.2625]
[1729461570986,6.1213,163.88,163.79,21.3678]
[1729461570987,6.1036,163.84,163.79,21.3678]
[1729461571280,6.1039,163.83,163.79,15.2625]
[1729461574062,6.1034,163.85,163.79,21.3675]
[1729461576376,6.1035,163.84,163.79,21.3675]
[1729461577688,6.1035,163.84,163.8,6.1049]
[1729461582079,6.1035,163.84,163.79,15.2625]
[1729461582080,6.1039,163.83,163.79,15.2625]
[1729461582374,6.1039,163.83,163.79,21.3678]
[1729461582564,22.2111,163.84,163.79,21.3678]
[1729461582890,22.2111,163.84,163.79,21.3677]
[1729461583396,16.1075,163.87,163.81,6.1044]
[1729461583880,16.1075,163.87,163.79,6.1053]
[1729461584086,6.1034,163.85,163.8,6.1048]
[1729461584288,6.1034,163.85,163.78,23.776884]
[1729461584480,6.1034,163.85,163.81,6.1045]
[1729461585260,6.1034,163.85,163.78,23.776884]
[1729461585462,6.1034,163.85,163.8,21.367]
[1729461586180,6.1034,163.85,163.81,6.1045]
[1729461586380,6.1034,163.85,163.8,15.2623]
[1729461586558,6.1034,163.85,163.8,21.3672]
[1729461588264,6.1028,163.86,163.81,6.1044]
[1729461589885,16.1075,163.87,163.8,15.2623]
[1729461590076,6.1027,163.86,163.8,6.1046]
[1729461590996,6.1027,163.86,163.81,6.1046]
[1729461592988,6.1027,163.86,163.8,15.2625]
[1729461592989,6.1034,163.85,163.8,15.2625]
[1729461593496,6.1034,163.85,163.8,21.3673]
[1729461594376,6.1034,163.85,163.81,6.1046]
[1729461594588,6.1034,163.85,163.8,21.3674]
[1729461594895,6.1035,163.84,163.8,21.3674]
[1729461595471,6.1046,163.81,163.77,15.2652]
[1729461595670,6.1045,163.82,163.77,21.3712]
[1729461595967,15.3597,163.83,163.74,15.2678]
[1729461596180,6.1057,163.79,163.75,2.59330092]
[1729461597275,6.1057,163.79,163.76,2.59330092]
[1729461597481,6.1047,163.81,163.75,6.1068]
[1729461597682,6.1047,163.81,163.76,2.59515765]
[1729461598102,6.1047,163.81,163.77,2.59515765]
[1729461598400,6.1047,163.81,163.78,2.59515765]
[1729461598584,6.1047,163.81,163.76,6.1064]
[1729461598786,16.2319,163.84,163.77,17.86095595]
[1729461598981,6.1046,163.82,163.78,2.59635595]
[1729461599174,6.1046,163.82,163.77,21.3706]
[1729461599383,6.1046,163.82,163.78,2.59822098]
[1729461599582,6.1046,163.82,163.79,2.59822098]
[1729461599782,20.0,163.83,163.81,6.1045]
[1729461600087,22.2355,163.84,163.79,6.1052]
[1729461600306,15.5646,163.88,163.8,2.59755517]
[1729461600473,15.5646,163.88,163.75,10.645]
[1729461600474,15.5646,163.92,163.81,2.59755517]
[1729461600674,15.5646,163.92,163.84,20.0]
[1729461600873,15.5646,163.92,163.9,6.1011]
[1729461601069,13.5646,163.92,163.84,20.0]
[1729461601318,13.5646,163.92,163.85,2.5940435]
[1729461601639,13.5646,163.92,163.86,2.5940435]
[1729461601783,13.5646,163.92,163.87,2.5940435]
[1729461601985,6.101,163.91,163.86,6.1026]
[1729461602184,19.6651,163.92,163.87,8.69614638]
[1729461602396,13.5646,163.92,163.88,2.59394638]
[1729461602606,13.5646,163.92,163.87,6.1022]
[1729461602901,6.1016,163.89,163.88,2.5941976]
[1729461603085,6.1016,163.89,163.75,10.645]
[1729461603086,13.6646,163.92,163.83,4.15153239]
[1729461603399,13.6646,163.92,163.75,10.545]
[1729461603400,7.78162637,163.89,163.84,6.74673834]
[1729461603606,20.0,163.88,163.85,2.59584383]
[1729461603776,20.0,163.88,163.82,4.15324285]
[1729461603973,20.0,163.88,163.75,10.545]
[1729461603974,6.103,163.86,163.83,2.59601756]
[1729461604193,26.1031,163.85,163.84,2.59601756]
[1729461604497,32.7539,163.85,163.84,2.59601756]
[1729461604698,26.6508,163.85,163.84,2.59601756]
[1729461604902,32.7539,163.85,163.84,2.59601756]
[1729461605193,26.6508,163.85,163.74,6.4258]
[1729461605406,26.6508,163.85,163.8,6.1048]
[1729461605601,26.6508,163.85,163.81,6.7584959]
[1729461605804,26.6508,163.85,163.82,6.7584959]
[1729461606012,26.6508,163.85,163.83,2.59930243]
[1729461606305,26.6508,163.85,163.84,2.59930243]
[1729461606306,6.6508,163.85,163.84,2.59930243]
[1729461606484,6.3271,163.89,163.84,2.59930243]
[1729461606681,6.1021,163.88,163.85,2.59930243]
[1729461606881,12.4287,163.89,163.83,10.26233734]
[1729461607082,6.4271,163.89,163.84,6.75792444]
[1729461607310,6.4271,163.89,163.75,20.0]
[1729461607311,6.1027,163.87,163.8,6.1049]
[1729461607485,6.1027,163.87,163.81,6.75887579]
[1729461607803,20.50999189,163.86,163.82,6.75887579]
[1729461608009,6.61269189,163.86,163.83,6.75835355]
[1729461608306,6.61269189,163.86,163.84,2.59945213]
[1729461608484,26.61269189,163.86,163.85,2.59945213]
[1729461608788,20.0,163.85,163.75,35.2671]
[1729461608993,6.1038,163.83,163.77,6.1061]
[1729461609181,15.6555,163.84,163.78,6.75895286]
[1729461609392,15.6555,163.84,163.79,6.75895286]
[1729461609586,15.6555,163.84,163.8,6.75895286]
[1729461609787,20.50999189,163.83,163.81,2.59947819]
[1729461609996,6.1047,163.81,163.76,4.16033166]
[1729461610195,20.50999189,163.83,163.7,6.3426]
[1729461610196,20.0,163.83,163.77,6.76030817]
[1729461610503,20.0,163.8,163.78,6.76030817]
[1729461610706,20.0,163.8,163.67,12.545]
[1729461610707,20.0,163.8,163.72,4.16127917]
[1729461610912,6.1053,163.79,163.73,6.76195185]
[1729461611210,6.1053,163.79,163.72,15.2696]
[1729461611211,6.1057,163.79,163.74,6.76195185]
[1729461611503,20.0,163.8,163.72,15.2696]
[1729461611504,26.105,163.8,163.75,12.86875185]
[1729461611810,26.105,163.8,163.76,6.76195185]
[1729461612106,26.105,163.8,163.77,6.76195185]
[1729461612311,26.105,163.8,163.78,6.76195185]
[1729461612492,6.0028,163.81,163.79,2.60067268]
[1729461612694,26.0028,163.81,163.8,2.59942069]
[1729461612923,32.1074,163.81,163.8,2.59942069]
[1729461613615,26.0028,163.81,163.8,2.59942069]
[1729461614114,26.0028,163.81,163.8,2.59735286]
[1729461616097,32.1074,163.81,163.8,2.59735286]
[1729461616510,26.0028,163.81,163.8,2.59735286]
[1729461616693,6.0028,163.81,163.8,2.59735286]
[1729461616892,20.0,163.83,163.8,17.85915286]
[1729461617092,20.0,163.83,163.79,4.15508589]
[1729461617093,6.37453001,163.87,163.84,15.2584]
[1729461617393,6.37453001,163.87,163.82,6.1042]
[1729461617394,21.8672,163.88,163.78,20.0]
[1729461617592,21.8672,163.88,163.82,6.1042]
[1729461617808,21.8672,163.88,163.83,12.85024144]
[1729461618009,21.8672,163.88,163.84,2.59470494]
[1729461618197,21.8672,163.88,163.85,2.59470494]
[1729461618396,21.8672,163.88,163.83,6.1037]
[1729461618717,21.8672,163.88,163.84,2.59425458]
[1729461618908,21.8672,163.88,163.85,2.59425458]
[1729461619109,21.8672,163.88,163.83,6.1037]
[1729461619310,15.7652,163.88,163.84,2.59332728]
[1729461619526,15.7652,163.88,163.85,2.59332728]
[1729461619708,15.7652,163.88,163.83,6.1037]
[1729461619912,15.7652,163.88,163.84,2.5921523]
[1729461620215,15.7652,163.88,163.83,10.25145207]
[1729461620216,0.2,163.84,163.83,4.14775207]
[1729461620395,0.2,163.84,163.75,6.1065]
[1729461620396,20.0,163.81,163.75,6.1065]
[1729461620595,20.0,163.81,163.76,6.74204032]
[1729461620793,20.0,163.81,163.77,6.74204032]
[1729461621029,20.0,163.81,163.78,6.74204032]
[1729461621207,20.73253734,163.81,163.79,2.59313456]
[1729461621517,20.73253734,163.81,163.8,2.59313456]
[1729461622516,26.83713734,163.81,163.78,4.15062864]
[1729461622819,26.83713734,163.81,163.79,2.59441501]
[1729461623022,26.83713734,163.81,163.78,4.15062864]
[1729461623201,26.83713734,163.81,163.79,2.59459189]
[1729461623396,26.83713734,163.81,163.76,6.1064]
[1729461623397,26.83713734,163.81,163.78,4.15062864]
[1729461623599,6.1053,163.79,163.77,4.15062864]
[1729461623908,6.1053,163.79,163.78,2.59515229]
[1729461624511,20.0,163.79,163.75,4.15196223]
[1729461624829,6.1062,163.77,163.76,2.59504528]
[1729461625199,6.1062,163.77,163.72,6.1077]
[1729461625514,6.1062,163.77,163.73,2.59535756]
[1729461625697,6.1062,163.77,163.74,2.59535756]
[1729461625894,6.1062,163.77,163.75,2.59535756]
[1729461626118,20.1,163.79,163.76,2.59534591]
[1729461626425,16.121,163.8,163.71,6.1083]
[1729461626426,6.1061,163.77,163.71,6.1083]
[1729461626719,6.1061,163.77,163.72,2.59493829]
[1729461627018,6.1061,163.77,163.73,2.59493829]
[1729461627318,6.1061,163.77,163.74,2.59493829]
[1729461627525,6.1061,163.77,163.75,2.59493829]
[1729461627718,6.1061,163.77,163.71,6.1083]
[1729461628026,20.0,163.79,163.72,2.59416697]
[1729461628228,16.021,163.8,163.73,2.59416697]
[1729461628428,20.0,163.8,163.76,21.3722]
[1729461629327,20.0,163.8,163.77,2.59245647]
[1729461629627,19.0,163.8,163.77,2.59245647]
[1729461629795,19.0,163.8,163.71,15.2699]
[1729461629998,6.1054,163.79,163.74,6.1068]
[1729461630195,6.1054,163.79,163.75,2.59254902]
[1729461630408,19.0,163.8,163.76,2.59254902]
[1729461630606,6.106,163.78,163.73,6.1075]
[1729461630922,6.106,163.78,163.74,2.59239408]
[1729461631102,6.106,163.78,163.75,2.59239408]
[1729461631304,6.106,163.78,163.73,6.1075]
[1729461631651,19.0,163.8,163.75,21.3736]
[1729461631652,25.105,163.8,163.75,21.3736]
[1729461631831,19.0,163.8,163.75,15.2671]
[1729461632118,25.105,163.8,163.76,2.59185214]
[1729461632332,25.105,163.8,163.75,21.3739]
[1729461632500,0.73253734,163.81,163.8,6.105]
[1729461632702,15.4962,163.84,163.82,6.1042]
[1729461632916,0.1,163.84,163.75,23.776884]
[1729461633128,0.1,163.84,163.77,21.3709]
[1729461633297,6.1044,163.82,163.78,2.58818907]
[1729461633503,0.1,163.84,163.72,20.0]
[1729461633704,0.78239242,163.86,163.73,9.18564704]
[1729461634007,0.1,163.84,163.74,2.58934704]
[1729461634207,20.1,163.84,163.75,2.58934704]
[1729461634522,20.0,163.84,163.82,6.1041]
[1729461634825,6.37503383,163.89,163.85,15.2576]
[1729461635008,6.37503383,163.89,163.82,23.776884]
[1729461635212,26.029361,163.93,163.86,15.2569]
[1729461635423,4.199061,163.93,163.87,15.2555]
[1729461635641,4.199061,163.93,163.87,20.1373]
[1729461636423,4.199061,163.93,163.82,23.776884]
[1729461636634,24.199061,163.93,163.87,12.2047]
[1729461637629,4.199061,163.93,163.88,4.8814]
[1729461637798,4.199061,163.93,163.91,4.8805]
[1729461638006,4.199061,163.93,163.92,23.776884]
[1729461638206,4.199061,163.93,163.92,46.35647001]
[1729461638410,5.20846018,163.94,163.93,4.8801]
[1729461638706,5.20846018,163.94,163.93,48.656984]
[1729461638922,5.20846018,163.94,163.93,51.23626269]
[1729461639323,5.20846018,163.94,163.93,48.656984]
[1729461639527,5.20846018,163.94,163.93,28.656984]
[1729461639905,5.20846018,163.94,163.93,31.23326623]
[1729461640309,10.092,163.95,163.93,4.8801]
[1729461640513,10.092,163.95,163.93,17.0802]
[1729461642729,10.092,163.95,163.94,23.776884]
[1729461643431,10.092,163.95,163.94,43.776884]
[1729461644319,10.092,163.95,163.94,20.0]
[1729461645203,10.092,163.95,163.93,17.0802]
[1729461645408,10.092,163.95,163.94,43.776884]
[1729461645803,10.092,163.95,163.94,20.0]
[1729461648818,10.092,163.95,163.94,43.776884]
[1729461649021,10.092,163.95,163.94,20.0]
[1729461649330,10.092,163.95,163.94,43.776884]
[1729461650244,10.092,163.95,163.94,43.876884]
[1729461650435,10.092,163.95,163.94,48.656684]
[1729461651236,10.092,163.95,163.94,4.8798]
[1729461652554,10.092,163.95,163.94,48.656684]
[1729461653721,10.092,163.95,163.94,28.656684]
[1729461654327,10.092,163.95,163.94,4.8798]
[1729461655532,10.092,163.95,163.94,28.656684]
[1729461656745,10.092,163.95,163.94,4.8798]
[1729461661527,10.092,163.95,163.93,12.2001]
[1729461663155,10.092,163.95,163.9,4.8809]
[1729461664168,10.092,163.95,163.92,4.8801]
[1729461664327,10.092,163.95,163.87,24.4086]
[1729461664328,10.092,163.95,163.93,4.88]
[1729461667458,10.092,163.95,163.92,17.0812]
[1729461667836,10.092,163.95,163.94,4.8798]
[1729461671848,10.20634847,163.95,163.94,4.8798]
[1729461684570,10.20634847,163.95,163.94,28.656684]
[1729461686679,10.20634847,163.95,163.94,4.8798]
[1729461688678,10.20634847,163.95,163.94,14.8798]
[1729461690278,10.20634847,163.95,163.94,17.42733427]
[1729461691376,10.092,163.95,163.94,17.42733427]
[1729461691784,10.21725189,163.95,163.94,17.42733427]
[1729461692669,10.21725189,163.95,163.94,28.23605644]
[1729461692972,10.21725189,163.95,163.94,14.8798]
[1729461693180,10.21725189,163.95,163.94,17.40066777]
[1729461693489,10.21725189,163.95,163.94,17.40417178]
[1729461696482,10.21725189,163.95,163.94,17.41377943]
[1729461700077,10.21725189,163.95,163.94,17.41376579]
[1729461703673,10.21725189,163.95,163.94,17.4147454]
[1729461709791,5.189e-05,163.95,163.94,61.1916294]
[1729461710166,5.189e-05,163.95,163.94,61.2916294]
[1729461710872,5.189e-05,163.95,163.94,61.28947176]
[1729461711278,0.12803261,163.97,163.94,61.28947176]
[1729461711279,66.51198,164.0,163.95,43.876884]
[1729461711593,66.51198,164.0,163.99,4.8783]
[1729461711779,66.6358774,164.0,163.99,7.41108776]
[1729461712991,66.6358774,164.0,163.99,31.18797176]
[1729461714273,63.1886774,164.0,163.99,13.67128776]
[1729461714506,63.1886774,164.0,163.99,37.44817176]
[1729461714507,46.37250602,164.0,163.99,37.44817176]
[1729461714685,43.43310602,164.0,163.99,45.02426166]
[1729461714985,26.78318482,164.0,163.99,65.02426166]
[1729461715300,0.75590156,164.01,164.0,0.1]
[1729461715602,0.75590156,164.01,164.0,38.86376166]
[1729461715894,0.75590156,164.01,164.0,40.08246594]
[1729461716209,1.56e-06,164.01,164.0,70.82637604]
[1729461716392,1.56e-06,164.01,164.0,52.60637604]
[1729461716724,1.56e-06,164.01,164.0,70.00637604]
[1729461717587,1.56e-06,164.01,164.0,68.78767176]
[1729461718028,14.91478755,164.14,164.03,0.1]
[1729461718198,14.91478755,164.14,164.05,23.776884]
[1729461718399,14.91478755,164.14,164.06,2.53278776]
[1729461718717,14.91478755,164.14,164.07,2.53278776]
[1729461719018,14.41478755,164.14,164.08,2.53278776]
[1729461719222,14.41478755,164.14,164.09,2.53278776]
[1729461719417,14.41478755,164.14,164.05,23.776884]
[1729461719618,14.41478755,164.14,164.06,2.52002626]
[1729461719812,14.41478755,164.14,164.07,23.776884]
[1729461720007,14.41478755,164.14,164.08,2.52002626]
[1729461723129,14.41478755,164.14,164.07,23.776884]
[1729461730823,13.41478755,164.14,164.07,23.776884]
[1729461731338,13.41478755,164.14,164.01,20.1]
[1729461731634,13.41478755,164.14,164.02,2.50502476]
[1729461731635,27.7501,164.11,164.02,2.50502476]
[1729461731812,27.7501,164.11,164.03,2.50502476]
[1729461732008,27.7501,164.11,164.04,2.50502476]
[1729461732211,27.7501,164.11,164.05,2.50502476]
[1729461732428,27.7501,164.11,163.99,20.1]
[1729461732735,4.8754,164.09,164.0,2.50532894]
[1729461733026,4.8755,164.09,164.01,2.50532894]
[1729461733246,4.8755,164.09,164.02,2.50532894]
[1729461733247,4.3755,164.09,164.02,2.50532894]
[1729461733428,4.3755,164.09,164.03,2.50532894]
[1729461733620,4.3755,164.09,164.04,7.38212894]
[1729461733819,4.3755,164.09,164.04,4.8768]
[1729461734731,4.8741,164.13,164.07,4.8757]
[1729461735037,13.41478755,164.14,164.06,0.1]
[1729461735210,13.41478755,164.14,164.12,4.8743]
[1729461735906,13.41478755,164.14,164.06,20.1]
[1729461735907,12.41478755,164.14,164.06,20.0]
[1729461736109,12.41478755,164.14,164.11,4.8747]
[1729461736309,12.41478755,164.14,164.13,4.8741]
[1729461736526,12.41478755,164.14,164.13,28.650984]
[1729461736926,12.41478755,164.14,164.13,48.750984]
[1729461737132,12.41478755,164.14,164.13,51.25187714]
[1729461737329,12.41478755,164.14,164.13,58.71930037]
[1729461737532,12.41478755,164.14,164.13,51.15187714]
[1729461737742,12.41478755,164.14,164.13,51.25187714]
[1729461738308,12.41478755,164.14,164.13,51.35187714]
[1729461738511,0.6277614,164.17,164.16,0.1]
[1729461738730,0.6277614,164.17,164.15,22.60089314]
[1729461738927,0.6277614,164.17,164.16,2.60089314]
[1729461739538,0.30433,164.3,164.16,2.60089314]
[1729461739539,0.30433,164.3,164.24,0.1]
[1729461739721,0.30433,164.3,164.23,0.1]
[1729461739722,0.30433,164.3,164.23,0.2]
[1729461739912,0.30433,164.3,164.25,20.0]
[1729461740812,0.30433,164.3,164.26,23.776884]
[1729461742428,22.6706955,164.42,164.3,23.776884]
[1729461742914,16.3162,164.42,164.3,23.776884]
[1729461743108,4.8659,164.41,164.3,23.776884]
[1729461743340,62.36165292,164.44,164.37,0.1]
[1729461743519,50.0,164.44,164.4,0.1]
[1729461743714,50.0,164.44,164.38,43.876884]
[1729461743914,50.0,164.44,164.38,43.776884]
[1729461744143,50.0,164.44,164.38,43.876884]
[1729461744315,50.0,164.44,164.4,0.1]
[1729461744719,50.0,164.44,164.41,0.1]
[1729461745023,50.0,164.44,164.43,0.1]
[1729461745925,50.0,164.44,164.42,0.1]
[1729461746111,50.0,164.44,164.43,23.776884]
[1729461746311,50.0,164.44,164.43,23.876884]
[1729461746535,50.0,164.44,164.43,43.876884]
[1729461746732,40.94529675,164.44,164.43,23.776884]
[1729461748537,40.94529675,164.44,164.39,0.1]
[1729461748721,40.44529675,164.44,164.4,23.776884]
[1729461748927,40.44529675,164.44,164.39,20.1]
[1729461749242,40.44529675,164.44,164.39,0.1]
[1729461749547,40.44529675,164.44,164.37,20.1]
[1729461749845,40.44529675,164.44,164.38,0.1]
[1729461750526,40.44529675,164.44,164.37,20.0]
[1729461750920,40.44529675,164.44,164.36,7.65605454]
[1729461751242,40.44529675,164.44,164.35,0.1]
[1729461751621,40.44529675,164.44,164.37,0.1]
[1729461751822,40.44529675,164.44,164.35,0.1]
[1729461752526,40.44529675,164.44,164.36,23.876884]
[1729461753853,40.44529675,164.44,164.36,23.776884]
[1729461754217,40.44529675,164.44,164.36,23.876884]
[1729461754742,40.44529675,164.44,164.36,23.776884]
[1729461754947,40.44529675,164.44,164.34,0.2]
[1729461755443,40.44529675,164.44,164.36,0.1]
[1729461756030,40.44529675,164.44,164.37,0.1]
[1729461756230,40.44529675,164.44,164.39,0.1]
[1729461756424,40.44529675,164.44,164.43,20.0]
[1729461756634,40.44529675,164.44,164.43,43.876884]
[1729461757462,39.38839675,164.44,164.43,43.876884]
[1729461757624,39.38839675,164.44,164.43,60.91922524]
[1729461758036,39.38839675,164.44,164.43,51.75032743]
[1729461758230,39.38839675,164.44,164.43,51.85032743]
[1729461758955,31.66859675,164.44,164.43,51.85032743]
[1729461759269,31.66859675,164.44,164.43,20.1]
[1729461759441,31.66859675,164.44,164.43,20.2]
[1729461760121,31.66859675,164.44,164.43,27.25122121]
[1729461760754,31.66859675,164.44,164.43,51.02810521]
[1729461761049,31.66859675,164.44,164.43,43.876884]
[1729461763734,31.66859675,164.44,164.43,43.976884]
[1729461763940,31.66859675,164.44,164.43,43.876884]
[1729461764137,31.66859675,164.44,164.42,20.1]
[1729461764355,31.66859675,164.44,164.43,0.1]
[1729461764665,31.66859675,164.44,164.43,20.1]
[1729461765454,31.66859675,164.44,164.43,43.876884]
[1729461766043,31.66859675,164.44,164.43,54.65339627]
[1729461766237,31.66859675,164.44,164.43,43.876884]
[1729461766441,31.66859675,164.44,164.43,23.876884]
[1729461767760,31.66859675,164.44,164.43,43.876884]
[1729461770441,7.89859675,164.44,164.43,43.876884]
[1729461770746,7.89859675,164.44,164.43,60.18680029]
[1729461771151,7.89859675,164.44,164.43,60.08680029]
[1729461771362,7.89859675,164.44,164.43,51.27366077]
[1729461771962,7.89859675,164.44,164.43,51.37366077]
[1729461772354,7.89859675,164.44,164.43,51.27366077]
[1729461772556,7.89859675,164.44,164.43,51.37366077]
[1729461773263,7.89859675,164.44,164.43,60.18680029]
[1729461773469,7.89859675,164.44,164.43,55.68680029]
[1729461775440,0.6277614,164.5,164.46,0.1]
[1729461775648,0.6277614,164.5,164.49,0.1]
[1729461775850,0.6277614,164.5,164.49,7.6286101]
[1729461776946,0.6277614,164.5,164.49,27.8286101]
[1729461777167,0.6277614,164.5,164.49,27.7286101]
[1729461778057,0.6277614,164.5,164.49,36.64174962]
[1729461779977,0.6277614,164.5,164.49,36.54174962]
[1729461780157,0.6277614,164.5,164.49,36.64174962]
[1729461780351,0.6277614,164.5,164.49,26.8026]
[1729461780675,0.6277614,164.5,164.49,65.46798155]
[1729461780864,0.6277614,164.5,164.49,47.14798155]
[1729461781074,0.6277614,164.5,164.49,65.46798155]
[1729461781374,0.6277614,164.5,164.49,66.85755798]
[1729461781573,0.35528737,164.53,164.52,0.2]
[1729461781879,0.35528737,164.53,164.52,54.18243711]
[1729461782470,5.0,164.58,164.57,0.2]
[1729461782764,5.0,164.58,164.57,36.6084108]
[1729461783465,5.0,164.58,164.57,54.9284108]
[1729461783976,16.5158,164.72,164.57,54.9284108]
[1729461783977,16.5158,164.72,164.63,0.2]
[1729461784277,16.5158,164.72,164.63,27.25180737]
[1729461785458,0.78078013,164.74,164.63,27.25180737]
[1729461785662,0.78078013,164.74,164.63,36.12653302]
[1729461786169,0.78078013,164.74,164.63,37.98143302]
[1729461786578,0.78078013,164.74,164.63,36.12653302]
[1729461787445,6.3168,164.72,164.63,36.12653302]
[1729461788474,6.3168,164.72,164.65,0.2]
[1729461788668,6.3168,164.72,164.65,35.99292191]
[1729461790550,0.78078013,164.74,164.65,72.63292191]
[1729461790954,0.78078013,164.74,164.73,0.1]
[1729461791965,0.78078013,164.74,164.72,0.1]
[1729461792153,0.78078013,164.74,164.71,7.4031407]
[1729461792479,0.78078013,164.74,164.71,7.3031407]
[1729461792977,0.78078013,164.74,164.71,7.4031407]
[1729461793162,0.78078013,164.74,164.71,7.3031407]
[1729461795269,0.78078013,164.74,164.72,20.0]
[1729461795675,0.78078013,164.74,164.71,7.3031407]
[1729461795866,0.78078013,164.74,164.68,0.1]
[1729461796177,0.78078013,164.74,164.67,20.0]
[1729461796376,0.78078013,164.74,164.68,0.1]
[1729461796580,0.78078013,164.74,164.69,0.1]
[1729461797280,0.78078013,164.74,164.7,0.1]
[1729461797487,0.78078013,164.74,164.69,0.1]
[1729461798385,0.78078013,164.74,164.71,0.1]
[1729461798559,0.78078013,164.74,164.67,20.1]
[1729461798560,0.78078013,164.74,164.72,0.1]
[1729461798761,0.78078013,164.74,164.73,0.1]
[1729461799085,0.78078013,164.74,164.72,27.00746293]
[1729461799283,0.78078013,164.74,164.73,0.1]
[1729461799482,0.78078013,164.74,164.73,0.2]
[1729461799663,0.1,164.88,164.73,0.2]
[1729461799664,44.86173242,164.9,164.86,0.1]